Workbook

Sheet Information

Sheet AthletInnen
A1: Spieler | D1: Körperdaten | L1: Metobalische Daten | P1: Herzfrequenzzonen | Z1: Aerob / Anaerobe Schwelle | AB1: Geschwindigkeitsempfehlungen ausgehend vom 30-15 IFT-Test
A2: NR | B2: Name, Vorname | C2: Geb.Datum | D2: Alter | E2: Größe [m] | F2: Gewicht [kg] | G2: Körperfett | H2: Fettfreier Masse Index | I2: Ruhepuls [S/min] | J2: max.Puls [S/min] | K2: max. km/h VIFT 30-15 | L2: vVO2max [km/h] Geschwindigkeit in km/h bei welcher der VO2max-Wert erreicht wird | M2: vANAEROB (VT2) 4mmol Schwelle [km/h] Geschwindigkeit in km/h bei welcher die 4mmol/L Laktat-Schwelle erreicht wird | N2: vANAEROB (VT2) 4mmol Schwelle [m/S] | O2: VO2max [ml/min/kg] maximale Sauerstoffaufnahme in ml/min/kg Körpergewicht | P2: 64-71 [%] von HFmax | R2: 72-78 [%] von HFmax | T2: 79-84 [%] von HFmax | V2: 85-91 [%] von HFmax | X2: 92-100 [%] von HFmax | Z2: AEROBE Schwelle | AA2: ANAEROBE Schwelle | AB2: REG km/h | AC2: AEROB km/h | AD2: EXT ANE km/h | AE2: INT ANE km/h | AF2: ANAER km/h | AG2: REG min/km | AH2: AEROB min/km | AI2: EXT ANE min/km | AJ2: INT ANE min/km | AK2: ANAER min/km
P3: 64 | Q3: 71 | R3: 72 | S3: 78 | T3: 79 | U3: 87 | V3: 85 | W3: 91 | X3: 92 | Y3: 100
A4: 1 | B4: Test1 | D4: =IF(ISNUMBER(C4),DATEDIF(C4,TODAY(),"Y"),"") ->  | H4: =IF(ISNUMBER(E4),(F4-(F4*G4)/100)/(E4*E4),"") ->  | K4: ='IFT 30-15 Testprotokoll'!L4 ->  | L4: =IF(ISNUMBER(K4),K4/1.2,"") ->  | M4: =IF(ISNUMBER(L4),L4*0.85,"") ->  | N4: =IF(ISNUMBER(M4),M4/3.6,"") ->  | O4: =IF(ISNUMBER(K4),28.3-(2.15*1)-(0.741*D4)-(0.0357*F4)+(0.0586*D4*K4)+(1.03*K4),"") ->  | P4: =IF(ISNUMBER(J4),P$3*J4/100,"") ->  | Q4: =IF(ISNUMBER(J4),Q$3*J4/100,"") ->  | R4: =IF(ISNUMBER(J4),R$3*J4/100,"") ->  | S4: =IF(ISNUMBER(J4),S$3*J4/100,"") ->  | T4: =IF(ISNUMBER(J4),T$3*J4/100,"") ->  | U4: =IF(ISNUMBER(J4),U$3*J4/100,"") ->  | V4: =IF(ISNUMBER(J4),V$3*J4/100,"") ->  | W4: =IF(ISNUMBER(J4),W$3*J4/100,"") ->  | X4: =IF(ISNUMBER(J4),X$3*J4/100,"") ->  | Y4: =IF(ISNUMBER(J4),Y$3*J4/100,"") ->  | Z4: =IF(ISNUMBER(J4),(J4-I4)*0.5+I4,"") ->  | AA4: =IF(ISNUMBER(J4),(J4-I4)*0.7+I4,"") ->  | AB4: =IF(ISNUMBER(AC4),AC4*0.9,"") ->  | AC4: =IF(ISNUMBER(AD4),AD4*0.9,"") ->  | AD4: =IF(ISNUMBER(AE4),AE4*0.9,"") ->  | AE4: =IF(ISNUMBER(M4),M4,"") ->  | AF4: =IF(ISNUMBER(AE4),AE4*1.1,"") ->  | AG4: =IF(ISNUMBER(AB4),TIME(0,0,1/(AB4/3600)),"") ->  | AH4: =IF(ISNUMBER(AC4),TIME(0,0,1/(AC4/3600)),"") ->  | AI4: =IF(ISNUMBER(AD4),TIME(0,0,1/(AD4/3600)),"") ->  | AJ4: =IF(ISNUMBER(AE4),TIME(0,0,1/(AE4/3600)),"") ->  | AK4: =IF(ISNUMBER(AF4),TIME(0,0,1/(AF4/3600)),"") -> 
A5: 2 | B5: Test2 | D5: =IF(ISNUMBER(C5),DATEDIF(C5,TODAY(),"Y"),"") ->  | H5: =IF(ISNUMBER(E5),(F5-(F5*G5)/100)/(E5*E5),"") ->  | K5: ='IFT 30-15 Testprotokoll'!L5 ->  | L5: =IF(ISNUMBER(K5),K5/1.2,"") ->  | M5: =IF(ISNUMBER(L5),L5*0.85,"") ->  | N5: =IF(ISNUMBER(M5),M5/3.6,"") ->  | O5: =IF(ISNUMBER(K5),28.3-(2.15*1)-(0.741*D5)-(0.0357*F5)+(0.0586*D5*K5)+(1.03*K5),"") ->  | P5: =IF(ISNUMBER(J5),P$3*J5/100,"") ->  | Q5: =IF(ISNUMBER(J5),Q$3*J5/100,"") ->  | R5: =IF(ISNUMBER(J5),R$3*J5/100,"") ->  | S5: =IF(ISNUMBER(J5),S$3*J5/100,"") ->  | T5: =IF(ISNUMBER(J5),T$3*J5/100,"") ->  | U5: =IF(ISNUMBER(J5),U$3*J5/100,"") ->  | V5: =IF(ISNUMBER(J5),V$3*J5/100,"") ->  | W5: =IF(ISNUMBER(J5),W$3*J5/100,"") ->  | X5: =IF(ISNUMBER(J5),X$3*J5/100,"") ->  | Y5: =IF(ISNUMBER(J5),Y$3*J5/100,"") ->  | Z5: =IF(ISNUMBER(J5),(J5-I5)*0.5+I5,"") ->  | AA5: =IF(ISNUMBER(J5),(J5-I5)*0.7+I5,"") ->  | AB5: =IF(ISNUMBER(AC5),AC5*0.9,"") ->  | AE5: =IF(ISNUMBER(M5),M5,"") ->  | AF5: =IF(ISNUMBER(AE5),AE5*1.1,"") ->  | AG5: =IF(ISNUMBER(AB5),TIME(0,0,1/(AB5/3600)),"") ->  | AH5: =IF(ISNUMBER(AC5),TIME(0,0,1/(AC5/3600)),"") ->  | AI5: =IF(ISNUMBER(AD5),TIME(0,0,1/(AD5/3600)),"") ->  | AJ5: =IF(ISNUMBER(AE5),TIME(0,0,1/(AE5/3600)),"") ->  | AK5: =IF(ISNUMBER(AF5),TIME(0,0,1/(AF5/3600)),"") -> 
A6: 3 | B6: Test3 | K6: ='IFT 30-15 Testprotokoll'!L6 ->  | AB6: =IF(ISNUMBER(AC6),AC6*0.9,"") -> 
A7: 4 | B7: Test4 | K7: ='IFT 30-15 Testprotokoll'!L7 ->  | AB7: =IF(ISNUMBER(AC7),AC7*0.9,"") -> 
A8: 5 | B8: Test5 | K8: ='IFT 30-15 Testprotokoll'!L8 ->  | AB8: =IF(ISNUMBER(AC8),AC8*0.9,"") -> 
A9: 6 | B9: Test6 | K9: ='IFT 30-15 Testprotokoll'!L9 ->  | AB9: =IF(ISNUMBER(AC9),AC9*0.9,"") -> 
A10: 7 | B10: Test7 | K10: ='IFT 30-15 Testprotokoll'!L10 ->  | AB10: =IF(ISNUMBER(AC10),AC10*0.9,"") -> 
A11: 8 | B11: Test8 | K11: ='IFT 30-15 Testprotokoll'!L11 ->  | AB11: =IF(ISNUMBER(AC11),AC11*0.9,"") -> 
A12: 9 | B12: Test9 | K12: ='IFT 30-15 Testprotokoll'!L12 ->  | AB12: =IF(ISNUMBER(AC12),AC12*0.9,"") -> 
A13: 10 | B13: Test10 | K13: ='IFT 30-15 Testprotokoll'!L13 ->  | AB13: =IF(ISNUMBER(AC13),AC13*0.9,"") -> 
A14: 11 | B14: Spieler 11 | K14: ='IFT 30-15 Testprotokoll'!L14 ->  | AB14: =IF(ISNUMBER(AC14),AC14*0.9,"") -> 
A15: 12 | B15: Spieler 12 | K15: ='IFT 30-15 Testprotokoll'!L15 ->  | AB15: =IF(ISNUMBER(AC15),AC15*0.9,"") -> 
A16: 13 | B16: Spieler 13 | K16: ='IFT 30-15 Testprotokoll'!L16 ->  | AB16: =IF(ISNUMBER(AC16),AC16*0.9,"") -> 
A17: 14 | B17: Spieler 14 | K17: ='IFT 30-15 Testprotokoll'!L17 ->  | AB17: =IF(ISNUMBER(AC17),AC17*0.9,"") -> 
A18: 15 | B18: Spieler 15 | K18: ='IFT 30-15 Testprotokoll'!L18 ->  | AB18: =IF(ISNUMBER(AC18),AC18*0.9,"") -> 
A19: 16 | B19: Spieler 16 | K19: ='IFT 30-15 Testprotokoll'!L19 ->  | AB19: =IF(ISNUMBER(AC19),AC19*0.9,"") -> 
A20: 17 | B20: Spieler 17 | K20: ='IFT 30-15 Testprotokoll'!L20 ->  | AB20: =IF(ISNUMBER(AC20),AC20*0.9,"") -> 
A21: 18 | B21: Spieler 18 | K21: ='IFT 30-15 Testprotokoll'!L21 ->  | AB21: =IF(ISNUMBER(AC21),AC21*0.9,"") -> 
A22: 19 | B22: Spieler 19 | K22: ='IFT 30-15 Testprotokoll'!L22 ->  | AB22: =IF(ISNUMBER(AC22),AC22*0.9,"") -> 
A23: 20 | B23: Spieler 20 | K23: ='IFT 30-15 Testprotokoll'!L23 ->  | AB23: =IF(ISNUMBER(AC23),AC23*0.9,"") -> 
A24: 21 | B24: Spieler 21 | K24: ='IFT 30-15 Testprotokoll'!L24 ->  | AB24: =IF(ISNUMBER(AC24),AC24*0.9,"") -> 
A25: 22 | B25: Spieler 22 | K25: ='IFT 30-15 Testprotokoll'!L25 ->  | AB25: =IF(ISNUMBER(AC25),AC25*0.9,"") -> 
A26: 23 | B26: Spieler 23 | K26: ='IFT 30-15 Testprotokoll'!L26 ->  | AB26: =IF(ISNUMBER(AC26),AC26*0.9,"") -> 
A27: 24 | B27: Spieler 24 | K27: ='IFT 30-15 Testprotokoll'!L27 ->  | AB27: =IF(ISNUMBER(AC27),AC27*0.9,"") -> 
A28: 25 | B28: Spieler 25 | K28: ='IFT 30-15 Testprotokoll'!L28 ->  | AB28: =IF(ISNUMBER(AC28),AC28*0.9,"") -> 
A29: 26 | B29: Spieler 26 | K29: ='IFT 30-15 Testprotokoll'!L29 ->  | AB29: =IF(ISNUMBER(AC29),AC29*0.9,"") -> 
A30: 27 | B30: Spieler 27 | K30: ='IFT 30-15 Testprotokoll'!L30 ->  | AB30: =IF(ISNUMBER(AC30),AC30*0.9,"") -> 
A31: 28 | B31: Spieler 28 | K31: ='IFT 30-15 Testprotokoll'!L31 ->  | AB31: =IF(ISNUMBER(AC31),AC31*0.9,"") -> 
A32: 29 | B32: Spieler 29 | K32: ='IFT 30-15 Testprotokoll'!L32 ->  | AB32: =IF(ISNUMBER(AC32),AC32*0.9,"") -> 
A33: 30 | B33: Spieler 30 | K33: ='IFT 30-15 Testprotokoll'!L33 ->  | AB33: =IF(ISNUMBER(AC33),AC33*0.9,"") -> 
A34: 31 | B34: Spieler 31 | K34: ='IFT 30-15 Testprotokoll'!L34 ->  | AB34: =IF(ISNUMBER(AC34),AC34*0.9,"") -> 
A35: 32 | B35: Spieler 32 | K35: ='IFT 30-15 Testprotokoll'!L35 ->  | AB35: =IF(ISNUMBER(AC35),AC35*0.9,"") -> 
A36: 33 | B36: Spieler 33 | K36: ='IFT 30-15 Testprotokoll'!L36 ->  | AB36: =IF(ISNUMBER(AC36),AC36*0.9,"") -> 
A37: 34 | B37: Spieler 34 | K37: ='IFT 30-15 Testprotokoll'!L37 ->  | AB37: =IF(ISNUMBER(AC37),AC37*0.9,"") -> 
A38: 35 | B38: Spieler 35 | K38: ='IFT 30-15 Testprotokoll'!L38 ->  | AB38: =IF(ISNUMBER(AC38),AC38*0.9,"") -> 
A39: 36 | B39: Spieler 36 | K39: ='IFT 30-15 Testprotokoll'!L39 ->  | AB39: =IF(ISNUMBER(AC39),AC39*0.9,"") -> 
A40: 37 | B40: Spieler 37 | K40: ='IFT 30-15 Testprotokoll'!L40 ->  | AB40: =IF(ISNUMBER(AC40),AC40*0.9,"") -> 
A41: 38 | B41: Spieler 38 | K41: ='IFT 30-15 Testprotokoll'!L41 ->  | AB41: =IF(ISNUMBER(AC41),AC41*0.9,"") -> 
A42: 39 | B42: Spieler 39 | K42: ='IFT 30-15 Testprotokoll'!L42 ->  | AB42: =IF(ISNUMBER(AC42),AC42*0.9,"") -> 
A43: 40 | B43: Spieler 40 | K43: ='IFT 30-15 Testprotokoll'!L43 ->  | M43: =IF(ISNUMBER(L43),L43*0.85,"") ->  | AB43: =IF(ISNUMBER(AC43),AC43*0.9,"") -> 
A44: Mittelwerte | D44: =AVERAGE(IF(D4:D43<>0,D4:D43)) ->  | E44: =AVERAGE(IF(E4:E43<>0,E4:E43)) ->  | F44: =AVERAGE(IF(F4:F43<>0,F4:F43)) ->  | G44: =AVERAGE(IF(G4:G43<>0,G4:G43)) ->  | H44: =AVERAGE(IFERROR(H4:H43,"")) ->  | I44: =AVERAGE(IF(I4:I43<>0,I4:I43)) ->  | J44: =AVERAGE(IF(J4:J43<>0,J4:J43)) ->  | K44: =AVERAGE(IF(K4:K43<>0,K4:K43)) ->  | L44: =AVERAGE(IF(L4:L43<>0,L4:L43)) ->  | M44: =AVERAGE(IF(M4:M43<>0,M4:M43)) ->  | N44: =AVERAGE(IF(N4:N43<>0,N4:N43)) ->  | P44: =AVERAGE(IF(P4:P43<>0,P4:P43)) ->  | Q44: =AVERAGE(IF(Q4:Q43<>0,Q4:Q43)) ->  | R44: =AVERAGE(IF(R4:R43<>0,R4:R43)) ->  | S44: =AVERAGE(IF(S4:S43<>0,S4:S43)) ->  | T44: =AVERAGE(IF(T4:T43<>0,T4:T43)) ->  | U44: =AVERAGE(IF(U4:U43<>0,U4:U43)) ->  | V44: =AVERAGE(IF(V4:V43<>0,V4:V43)) ->  | W44: =AVERAGE(IF(W4:W43<>0,W4:W43)) ->  | X44: =AVERAGE(IF(X4:X43<>0,X4:X43)) ->  | Y44: =AVERAGE(IF(Y4:Y43<>0,Y4:Y43)) ->  | Z44: =AVERAGE(IF(Z4:Z43<>0,Z4:Z43)) ->  | AA44: =AVERAGE(IF(AA4:AA43<>0,AA4:AA43)) ->  | AB44: =AVERAGE(IF(AB4:AB43<>0,AB4:AB43)) ->  | AC44: =AVERAGE(IF(AC4:AC43<>0,AC4:AC43)) ->  | AD44: =AVERAGE(IF(AD4:AD43<>0,AD4:AD43)) ->  | AE44: =AVERAGE(IF(AE4:AE43<>0,AE4:AE43)) ->  | AF44: =AVERAGE(IF(AF4:AF43<>0,AF4:AF43)) ->  | AG44: =AVERAGE(IFERROR(AG4:AG43,"")) ->  | AH44: =AVERAGE(IFERROR(AH4:AH43,"")) ->  | AI44: =AVERAGE(IFERROR(AI4:AI43,"")) ->  | AJ44: =AVERAGE(IFERROR(AJ4:AJ43,"")) ->  | AK44: =AVERAGE(IFERROR(AK4:AK43,"")) -> 
A46: © by Rexhep Kushutani Msc (VfL Bochum) & Florian Maierhofer MSc (MFT) (nach der Idee von Martin Buchheit)

Sheet IFT 30-15 Testprotokoll
F1: Starting speed [km/h] | G1: 8 | H1: Starting time | I1: 08:56:04
F2: Speed Increment [km/h] | G2: 0.5
B3: Raw Speed | C3: Final Speed | D3: T(s) | E3: Time | G3: Name | H3: Finishing time | I3: Running time (s) | J3: Peak velocity | L3: max. VIFT [km/h] | M3: Average | N3: Ranking
B4: =G$1 -> 8 | C4: =(((D4-D$4)/45)*G$2)+B$4 -> 8 | D4: 0 | E4: =D4*1/(3600*24) -> 00:00:00 | G4: =AthletInnen!B4 -> Test1 | I4: =IF(H4="","",(H4/(1/(3600*24)))-(I$1/(1/(3600*24)))) ->  | J4: =IF(I4="","",LOOKUP(I4,D$4:D$320,C$4:C$320)) ->  | K4: =IF(J4="","",ROUNDDOWN(J4,0)) ->  | L4: =IF(K4="","",IF(J4-K4<=0.1,K4-0.5,IF(J4-K4>=0.5,K4+0.5,K4))) ->  | M4: =IF(ISNUMBER(L4),AVERAGE(IF($L$4:$L$43<>0,$L$4:$L$43)),"") ->  | N4: =IF(ISNUMBER(L4),_xlfn.RANK.EQ(L4,L4:L43,0),"") -> 
B5: 8 | C5: 8.055555556 | D5: 5 | E5: =D5*1/(3600*24) -> 00:00:05 | G5: =AthletInnen!B5 -> Test2 | I5: =IF(H5="","",(H5/(1/(3600*24)))-(I$1/(1/(3600*24)))) ->  | L5: =IF(K5="","",IF(J5-K5<=0.1,K5-0.5,IF(J5-K5>=0.5,K5+0.5,K5))) ->  | M5: =IF(ISNUMBER(L5),AVERAGE(IF($L$4:$L$43<>0,$L$4:$L$43)),"") ->  | N5: =IF(ISNUMBER(L5),_xlfn.RANK.EQ(L5,L5:L44,0),"") -> 
B6: 8 | C6: 8.111111111 | D6: 10 | E6: =D6*1/(3600*24) -> 00:00:10 | G6: =AthletInnen!B6 -> Test3
B7: 8 | C7: 8.166666667 | D7: 15 | E7: 00:00:15 | G7: =AthletInnen!B7 -> Test4
B8: 8 | C8: 8.222222222 | D8: 20 | E8: 00:00:20 | G8: =AthletInnen!B8 -> Test5
B9: 8 | C9: 8.277777778 | D9: 25 | E9: 00:00:25 | G9: =AthletInnen!B9 -> Test6
B10: 8 | C10: 8.333333333 | D10: 30 | E10: 00:00:30 | G10: =AthletInnen!B10 -> Test7 | K10: =IF(J10="","",ROUNDDOWN(J10,0)) -> 
B11: 8 | C11: 8.388888889 | D11: 35 | E11: 00:00:35 | G11: =AthletInnen!B11 -> Test8 | K11: =IF(J11="","",ROUNDDOWN(J11,0)) -> 
B12: 8 | C12: 8.444444444 | D12: 40 | E12: 00:00:40 | G12: =AthletInnen!B12 -> Test9
B13: =B4+G$2 -> 8.5 | C13: 8.5 | D13: 45 | E13: 00:00:45 | G13: =AthletInnen!B13 -> Test10 | I13: =IF(H13="","",(H13/(1/(3600*24)))-(I$1/(1/(3600*24)))) -> 
B14: 8.5 | C14: 8.555555556 | D14: 50 | E14: 00:00:50 | G14: =AthletInnen!B14 -> Spieler 11 | I14: =IF(H14="","",(H14/(1/(3600*24)))-(I$1/(1/(3600*24)))) -> 
B15: 8.5 | C15: 8.611111111 | D15: 55 | E15: 00:00:55 | G15: =AthletInnen!B15 -> Spieler 12
B16: 8.5 | C16: 8.666666667 | D16: 60 | E16: 00:01:00 | G16: =AthletInnen!B16 -> Spieler 13 | L16: =IF(K16="","",IF(J16-K16<=0.1,K16-0.5,IF(J16-K16>=0.5,K16+0.5,K16))) -> 
B17: 8.5 | C17: 8.722222222 | D17: 65 | E17: 00:01:05 | G17: =AthletInnen!B17 -> Spieler 14
B18: 8.5 | C18: 8.777777778 | D18: 70 | E18: 00:01:10 | G18: =AthletInnen!B18 -> Spieler 15
B19: 8.5 | C19: 8.833333333 | D19: 75 | E19: 00:01:15 | G19: =AthletInnen!B19 -> Spieler 16
B20: 8.5 | C20: 8.888888889 | D20: 80 | E20: 00:01:20 | G20: =AthletInnen!B20 -> Spieler 17
B21: 8.5 | C21: 8.944444444 | D21: 85 | E21: 00:01:25 | G21: =AthletInnen!B21 -> Spieler 18
B22: 9 | C22: 9 | D22: 90 | E22: 00:01:30 | G22: =AthletInnen!B22 -> Spieler 19
B23: 9 | C23: 9.055555556 | D23: 95 | E23: 00:01:35 | G23: =AthletInnen!B23 -> Spieler 20
B24: 9 | C24: 9.111111111 | D24: 100 | E24: 00:01:40 | G24: =AthletInnen!B24 -> Spieler 21
B25: 9 | C25: 9.166666667 | D25: 105 | E25: 00:01:45 | G25: =AthletInnen!B25 -> Spieler 22
B26: 9 | C26: 9.222222222 | D26: 110 | E26: 00:01:50 | G26: =AthletInnen!B26 -> Spieler 23 | L26: =IF(K26="","",IF(J26-K26<=0.1,K26-0.5,IF(J26-K26>=0.5,K26+0.5,K26))) -> 
B27: 9 | C27: 9.277777778 | D27: 115 | E27: 00:01:55 | G27: =AthletInnen!B27 -> Spieler 24
B28: 9 | C28: 9.333333333 | D28: 120 | E28: 00:02:00 | G28: =AthletInnen!B28 -> Spieler 25
B29: 9 | C29: 9.388888889 | D29: 125 | E29: 00:02:05 | G29: =AthletInnen!B29 -> Spieler 26 | I29: =IF(H29="","",(H29/(1/(3600*24)))-(I$1/(1/(3600*24)))) -> 
B30: 9 | C30: 9.444444444 | D30: 130 | E30: 00:02:10 | G30: =AthletInnen!B30 -> Spieler 27
B31: 9.5 | C31: 9.5 | D31: 135 | E31: 00:02:15 | G31: =AthletInnen!B31 -> Spieler 28
B32: 9.5 | C32: 9.555555556 | D32: 140 | E32: 00:02:20 | G32: =AthletInnen!B32 -> Spieler 29
B33: 9.5 | C33: 9.611111111 | D33: 145 | E33: 00:02:25 | G33: =AthletInnen!B33 -> Spieler 30
B34: 9.5 | C34: 9.666666667 | D34: 150 | E34: 00:02:30 | G34: =AthletInnen!B34 -> Spieler 31
B35: 9.5 | C35: 9.722222222 | D35: 155 | E35: 00:02:35 | G35: =AthletInnen!B35 -> Spieler 32
B36: 9.5 | C36: 9.777777778 | D36: 160 | E36: 00:02:40 | G36: =AthletInnen!B36 -> Spieler 33
B37: 9.5 | C37: 9.833333333 | D37: 165 | E37: 00:02:45 | G37: =AthletInnen!B37 -> Spieler 34
B38: 9.5 | C38: 9.888888889 | D38: 170 | E38: 00:02:50 | G38: =AthletInnen!B38 -> Spieler 35
B39: 9.5 | C39: 9.944444444 | D39: 175 | E39: 00:02:55 | G39: =AthletInnen!B39 -> Spieler 36
B40: 10 | C40: 10 | D40: 180 | E40: 00:03:00 | G40: =AthletInnen!B40 -> Spieler 37
B41: 10 | C41: 10.05555556 | D41: 185 | E41: 00:03:05 | G41: =AthletInnen!B41 -> Spieler 38
B42: 10 | C42: 10.11111111 | D42: 190 | E42: 00:03:10 | G42: =AthletInnen!B42 -> Spieler 39
B43: 10 | C43: 10.16666667 | D43: 195 | E43: 00:03:15 | G43: =AthletInnen!B43 -> Spieler 40
B45: =B35+G$2 -> 10 | C45: 10.22222222 | D45: 200 | E45: 00:03:20 | G45: Mittelwert | H45: =AVERAGE(IF($L$4:$L$43<>0,$L$4:$L$43)) ->  | I45: zeigt den Durchschnitt aller Werte
G46: Standardabweichung | H46: =_xlfn.STDEV.P(IF($L$4:$L$43<>0,$L$4:$L$43)) ->  | I46: zeigt die Streuung der Werte um den Mittelwert
B47: =B36+G$2 -> 10 | C47: =(((D47-D$4)/45)*G$2)+B$4 -> 10.27777778 | D47: 205 | E47: 00:03:25
B48: 10 | C48: 10.33333333 | D48: 210 | E48: 00:03:30 | G48: 10% Quartil | H48: =_xlfn.PERCENTILE.INC($L$4:$L$43,0.1) ->  | I48: 10% der Wert sind > | L48: =H48 ->  | M48: 10% der AtlethInnen sind besser als | Q48: =L48 -> 
B49: 10 | C49: 10.38888889 | D49: 215 | E49: 00:03:35 | G49: 0,25 Quartil | H49: =_xlfn.PERCENTILE.INC($L$4:$L$43,0.25) ->  | I49: 25% der Werte sind > | L49: =H49 ->  | M49: 25% der AtlethInnen sind besser als | Q49: =L49 -> 
B50: 10 | C50: 10.44444444 | D50: 220 | E50: 00:03:40 | G50: 0,50 Quartil | H50: =_xlfn.PERCENTILE.INC($L$4:$L$43,0.5) ->  | I50: 50% der Werte sind > | L50: =H50 ->  | M50: 50% der AtlethInnen sind besser als | Q50: =L50 -> 
B51: 10.5 | C51: 10.5 | D51: 225 | E51: 00:03:45 | G51: 0,75 Quartil | H51: =_xlfn.PERCENTILE.INC($L$4:$L$43,0.75) ->  | I51: 75% der Werte sind > | L51: =H51 ->  | M51: 75% der AtlethInnen sind besser als | Q51: =L51 -> 
B52: 10.5 | C52: 10.55555556 | D52: 230 | E52: 00:03:50
B53: 10.5 | C53: 10.61111111 | D53: 235 | E53: 00:03:55 | G53: Minimun | H53: =MIN($L$4:$L$43) -> 0 | Y53: Mittelwert der max. VIFT | AB53: =AVERAGE(IF($L$4:$L$43<>0,$L$4:$L$43)) ->  | AC53: zeigt den Durchschnitt aller Werte
B54: 10.5 | C54: 10.66666667 | D54: 240 | E54: 00:04:00 | G54: Maximum | H54: =MAX($L$4:$L$43) -> 0 | Y54: Standardabweichung | AB54: =_xlfn.STDEV.P(IF($L$4:$L$43<>0,$L$4:$L$43)) ->  | AC54: zeigt die Streuung der Werte um den Mittelwert
B55: =B45+G$2 -> 10.5 | C55: 10.72222222 | D55: 245 | E55: 00:04:05
B56: =B47+G$2 -> 10.5 | C56: 10.77777778 | D56: 250 | E56: 00:04:10 | F56: © by Rexhep Kushutani Msc (VfL Bochum) & Florian Maierhofer MSc (MFT) (nach der Idee von Martin Buchheit) | Y56: 10% Quartil | Z56: 0,1 Quartil | AB56: =_xlfn.PERCENTILE.INC(AB12:AB51,0.1) ->  | AC56: 10% der Werte sind kleiner als | AF56: =AB56 ->  | AG56: AthletInnen mit einem Wert >= | AJ56: =AB56 ->  | AK56: sind besser als 10% der Gruppe
B57: 10.5 | C57: 10.83333333 | D57: 255 | E57: 00:04:15 | Y57: 1. Quartil | Z57: 0,25 Quartil | AB57: =_xlfn.PERCENTILE.INC(AB12:AB51,0.25) ->  | AC57: 25% der Werte sind kleiner als | AF57: =AB57 ->  | AG57: AthletInnen mit einem Wert >= | AJ57: =AB57 ->  | AK57: sind besser als 25% der Gruppe
B58: 10.5 | C58: 10.88888889 | D58: 260 | E58: 00:04:20 | Y58: 2. Quartil | Z58: 0,50 Quartil | AB58: =_xlfn.PERCENTILE.INC(AB12:AB51,0.5) ->  | AC58: 50% der Werte sind kleiner als | AF58: =AB58 ->  | AG58: AthletInnen mit einem Wert >= | AJ58: =AB58 ->  | AK58: sind besser als 50% der Gruppe
B59: 10.5 | C59: 10.94444444 | D59: 265 | E59: 00:04:25 | Y59: 3. Quartil | Z59: 0,75 Quartil | AB59: =_xlfn.PERCENTILE.INC(AB12:AB51,0.75) ->  | AC59: 75% der Werte sind kleiner als | AF59: =AB59 ->  | AG59: AthletInnen mit einem Wert >= | AJ59: =AB59 ->  | AK59: sind besser als 75% der Gruppe
B60: 11 | C60: 11 | D60: 270 | E60: 00:04:30
B61: 11 | C61: 11.05555556 | D61: 275 | E61: 00:04:35 | Y61: Minimum | Z61: =MIN(AB12:AB33) -> 0
B62: 11 | C62: 11.11111111 | D62: 280 | E62: 00:04:40 | Y62: Maximum | Z62: =MAX(AB12:AB33) -> 0
B63: 11 | C63: 11.16666667 | D63: 285 | E63: 00:04:45
B64: 11 | C64: 11.22222222 | D64: 290 | E64: 00:04:50
B65: 11 | C65: 11.27777778 | D65: 295 | E65: 00:04:55
B66: 11 | C66: 11.33333333 | D66: 300 | E66: 00:05:00
B67: 11 | C67: 11.38888889 | D67: 305 | E67: 00:05:05
B68: 11 | C68: 11.44444444 | D68: 310 | E68: 00:05:10
B69: 11.5 | C69: 11.5 | D69: 315 | E69: 00:05:15
B70: 11.5 | C70: 11.55555556 | D70: 320 | E70: 00:05:20
B71: 11.5 | C71: 11.61111111 | D71: 325 | E71: 00:05:25
B72: 11.5 | C72: 11.66666667 | D72: 330 | E72: =D72*1/(3600*24) -> 00:05:30
B73: 11.5 | C73: 11.72222222 | D73: 335 | E73: 00:05:35
B74: 11.5 | C74: 11.77777778 | D74: 340 | E74: 00:05:40
B75: 11.5 | C75: 11.83333333 | D75: 345 | E75: 00:05:45
B76: 11.5 | C76: 11.88888889 | D76: 350 | E76: 00:05:50
B77: 11.5 | C77: 11.94444444 | D77: 355 | E77: 00:05:55
B78: 12 | C78: 12 | D78: 360 | E78: 00:06:00
B79: 12 | C79: 12.05555556 | D79: 365 | E79: 00:06:05
B80: 12 | C80: 12.11111111 | D80: 370 | E80: 00:06:10
B81: 12 | C81: 12.16666667 | D81: 375 | E81: 00:06:15
B82: 12 | C82: 12.22222222 | D82: 380 | E82: 00:06:20
B83: 12 | C83: 12.27777778 | D83: 385 | E83: 00:06:25
B84: 12 | C84: 12.33333333 | D84: 390 | E84: 00:06:30
B85: 12 | C85: 12.38888889 | D85: 395 | E85: 00:06:35
B86: 12 | C86: 12.44444444 | D86: 400 | E86: 00:06:40
B87: 12.5 | C87: 12.5 | D87: 405 | E87: 00:06:45
B88: 12.5 | C88: 12.55555556 | D88: 410 | E88: 00:06:50
B89: 12.5 | C89: 12.61111111 | D89: 415 | E89: 00:06:55
B90: 12.5 | C90: 12.66666667 | D90: 420 | E90: 00:07:00
B91: 12.5 | C91: 12.72222222 | D91: 425 | E91: 00:07:05
B92: 12.5 | C92: 12.77777778 | D92: 430 | E92: 00:07:10
B93: 12.5 | C93: 12.83333333 | D93: 435 | E93: 00:07:15
B94: 12.5 | C94: 12.88888889 | D94: 440 | E94: 00:07:20
B95: 12.5 | C95: 12.94444444 | D95: 445 | E95: 00:07:25
B96: 13 | C96: 13 | D96: 450 | E96: 00:07:30
B97: 13 | C97: 13.05555556 | D97: 455 | E97: 00:07:35
B98: 13 | C98: 13.11111111 | D98: 460 | E98: 00:07:40
B99: 13 | C99: 13.16666667 | D99: 465 | E99: 00:07:45
B100: 13 | C100: 13.22222222 | D100: 470 | E100: 00:07:50
B101: 13 | C101: 13.27777778 | D101: 475 | E101: 00:07:55
B102: 13 | C102: 13.33333333 | D102: 480 | E102: 00:08:00
B103: 13 | C103: 13.38888889 | D103: 485 | E103: 00:08:05
B104: 13 | C104: 13.44444444 | D104: 490 | E104: 00:08:10
B105: 13.5 | C105: 13.5 | D105: 495 | E105: 00:08:15
B106: 13.5 | C106: 13.55555556 | D106: 500 | E106: 00:08:20
B107: 13.5 | C107: 13.61111111 | D107: 505 | E107: 00:08:25
B108: 13.5 | C108: 13.66666667 | D108: 510 | E108: 00:08:30
B109: 13.5 | C109: 13.72222222 | D109: 515 | E109: 00:08:35
B110: 13.5 | C110: 13.77777778 | D110: 520 | E110: 00:08:40
B111: 13.5 | C111: =(((D111-D$4)/45)*G$2)+B$4 -> 13.83333333 | D111: 525 | E111: 00:08:45
B112: 13.5 | C112: 13.88888889 | D112: 530 | E112: 00:08:50
B113: 13.5 | C113: 13.94444444 | D113: 535 | E113: 00:08:55
B114: 14 | C114: 14 | D114: 540 | E114: 00:09:00
B115: 14 | C115: 14.05555556 | D115: 545 | E115: 00:09:05
B116: 14 | C116: 14.11111111 | D116: 550 | E116: 00:09:10
B117: 14 | C117: 14.16666667 | D117: 555 | E117: 00:09:15
B118: 14 | C118: 14.22222222 | D118: 560 | E118: 00:09:20
B119: 14 | C119: 14.27777778 | D119: 565 | E119: 00:09:25
B120: =B111+G$2 -> 14 | C120: 14.33333333 | D120: 570 | E120: 00:09:30
B121: 14 | C121: 14.38888889 | D121: 575 | E121: 00:09:35
B122: 14 | C122: 14.44444444 | D122: 580 | E122: 00:09:40
B123: 14.5 | C123: 14.5 | D123: 585 | E123: 00:09:45
B124: 14.5 | C124: 14.55555556 | D124: 590 | E124: 00:09:50
B125: 14.5 | C125: 14.61111111 | D125: 595 | E125: 00:09:55
B126: 14.5 | C126: 14.66666667 | D126: 600 | E126: 00:10:00
B127: 14.5 | C127: 14.72222222 | D127: 605 | E127: 00:10:05
B128: 14.5 | C128: 14.77777778 | D128: 610 | E128: 00:10:10
B129: 14.5 | C129: 14.83333333 | D129: 615 | E129: 00:10:15
B130: 14.5 | C130: 14.88888889 | D130: 620 | E130: 00:10:20
B131: 14.5 | C131: 14.94444444 | D131: 625 | E131: 00:10:25
B132: 15 | C132: 15 | D132: 630 | E132: 00:10:30
B133: 15 | C133: 15.05555556 | D133: 635 | E133: 00:10:35
B134: 15 | C134: 15.11111111 | D134: 640 | E134: 00:10:40
B135: 15 | C135: 15.16666667 | D135: 645 | E135: 00:10:45
B136: 15 | C136: 15.22222222 | D136: 650 | E136: =D136*1/(3600*24) -> 00:10:50
B137: 15 | C137: 15.27777778 | D137: 655 | E137: 00:10:55
B138: 15 | C138: 15.33333333 | D138: 660 | E138: 00:11:00
B139: 15 | C139: 15.38888889 | D139: 665 | E139: 00:11:05
B140: 15 | C140: 15.44444444 | D140: 670 | E140: 00:11:10
B141: 15.5 | C141: 15.5 | D141: 675 | E141: 00:11:15
B142: 15.5 | C142: 15.55555556 | D142: 680 | E142: 00:11:20
B143: 15.5 | C143: 15.61111111 | D143: 685 | E143: 00:11:25
B144: 15.5 | C144: 15.66666667 | D144: 690 | E144: 00:11:30
B145: 15.5 | C145: 15.72222222 | D145: 695 | E145: 00:11:35
B146: 15.5 | C146: 15.77777778 | D146: 700 | E146: 00:11:40
B147: 15.5 | C147: 15.83333333 | D147: 705 | E147: 00:11:45
B148: 15.5 | C148: 15.88888889 | D148: 710 | E148: 00:11:50
B149: 15.5 | C149: 15.94444444 | D149: 715 | E149: 00:11:55
B150: 16 | C150: 16 | D150: 720 | E150: 00:12:00
B151: 16 | C151: 16.05555556 | D151: 725 | E151: 00:12:05
B152: 16 | C152: 16.11111111 | D152: 730 | E152: 00:12:10
B153: 16 | C153: 16.16666667 | D153: 735 | E153: 00:12:15
B154: 16 | C154: 16.22222222 | D154: 740 | E154: 00:12:20
B155: 16 | C155: 16.27777778 | D155: 745 | E155: 00:12:25
B156: 16 | C156: 16.33333333 | D156: 750 | E156: 00:12:30
B157: 16 | C157: 16.38888889 | D157: 755 | E157: 00:12:35
B158: 16 | C158: 16.44444444 | D158: 760 | E158: 00:12:40
B159: 16.5 | C159: 16.5 | D159: 765 | E159: 00:12:45
B160: 16.5 | C160: 16.55555556 | D160: 770 | E160: 00:12:50
B161: 16.5 | C161: 16.61111111 | D161: 775 | E161: 00:12:55
B162: 16.5 | C162: 16.66666667 | D162: 780 | E162: 00:13:00
B163: 16.5 | C163: 16.72222222 | D163: 785 | E163: 00:13:05
B164: 16.5 | C164: 16.77777778 | D164: 790 | E164: 00:13:10
B165: 16.5 | C165: 16.83333333 | D165: 795 | E165: 00:13:15
B166: 16.5 | C166: 16.88888889 | D166: 800 | E166: 00:13:20
B167: 16.5 | C167: 16.94444444 | D167: 805 | E167: 00:13:25
B168: 17 | C168: 17 | D168: 810 | E168: 00:13:30
B169: 17 | C169: 17.05555556 | D169: 815 | E169: 00:13:35
B170: 17 | C170: 17.11111111 | D170: 820 | E170: 00:13:40
B171: 17 | C171: 17.16666667 | D171: 825 | E171: 00:13:45
B172: 17 | C172: 17.22222222 | D172: 830 | E172: 00:13:50
B173: 17 | C173: 17.27777778 | D173: 835 | E173: 00:13:55
B174: 17 | C174: 17.33333333 | D174: 840 | E174: 00:14:00
B175: 17 | C175: =(((D175-D$4)/45)*G$2)+B$4 -> 17.38888889 | D175: 845 | E175: 00:14:05
B176: 17 | C176: 17.44444444 | D176: 850 | E176: 00:14:10
B177: 17.5 | C177: 17.5 | D177: 855 | E177: 00:14:15
B178: 17.5 | C178: 17.55555556 | D178: 860 | E178: 00:14:20
B179: 17.5 | C179: 17.61111111 | D179: 865 | E179: 00:14:25
B180: 17.5 | C180: 17.66666667 | D180: 870 | E180: 00:14:30
B181: 17.5 | C181: 17.72222222 | D181: 875 | E181: 00:14:35
B182: 17.5 | C182: 17.77777778 | D182: 880 | E182: 00:14:40
B183: 17.5 | C183: 17.83333333 | D183: 885 | E183: 00:14:45
B184: =B175+G$2 -> 17.5 | C184: 17.88888889 | D184: 890 | E184: 00:14:50
B185: 17.5 | C185: 17.94444444 | D185: 895 | E185: 00:14:55
B186: 18 | C186: 18 | D186: 900 | E186: 00:15:00
B187: 18 | C187: 18.05555556 | D187: 905 | E187: 00:15:05
B188: 18 | C188: 18.11111111 | D188: 910 | E188: 00:15:10
B189: 18 | C189: 18.16666667 | D189: 915 | E189: 00:15:15
B190: 18 | C190: 18.22222222 | D190: 920 | E190: 00:15:20
B191: 18 | C191: 18.27777778 | D191: 925 | E191: 00:15:25
B192: 18 | C192: 18.33333333 | D192: 930 | E192: 00:15:30
B193: 18 | C193: 18.38888889 | D193: 935 | E193: 00:15:35
B194: 18 | C194: 18.44444444 | D194: 940 | E194: 00:15:40
B195: 18.5 | C195: 18.5 | D195: 945 | E195: 00:15:45
B196: 18.5 | C196: 18.55555556 | D196: 950 | E196: 00:15:50
B197: 18.5 | C197: 18.61111111 | D197: 955 | E197: 00:15:55
B198: 18.5 | C198: 18.66666667 | D198: 960 | E198: 00:16:00
B199: 18.5 | C199: 18.72222222 | D199: 965 | E199: 00:16:05
B200: 18.5 | C200: 18.77777778 | D200: 970 | E200: =D200*1/(3600*24) -> 00:16:10
B201: 18.5 | C201: 18.83333333 | D201: 975 | E201: 00:16:15
... 207 more rows

Sheet HIIT mit fixer Geschwindigkeit
A1: HIIT CALCULATOR mit fixer Geschwindigkeit
C3: © by Rexhep Kushutani Msc (VfL Bochum) & Florian Maierhofer MSc (MFT) (nach der Idee von Martin Buchheit)
B4: gewünschte Geschwindigkeit [km/h] | D4: 18
B5: Serien an HIIT Intervallen [n] | D5: 1
B6: Anzahl der Intervalle [n] | D6: 6 | F6: =(D7+D8)*(D6*D5)/60 -> 4.5
B7: Dauer eines Intervalls in [sek] | D7: 15 | E7: Dauer [hh:mm:ss] | F7: =F6/60/24 -> 00:04:30
B8: Dauer der Pause in [sek] | D8: 30
B9: Anzahl an Richtungswechsel [n] | D9: 2
B10: Winkel Richtungswechsel [45°/90°/180°] | D10: 180
B12: GRUPPENTRAINING
B13: Empfehlung für die | D13: Distanz HIIT [m] | E13: Distanz Teilstrecke [m] | F13: Zeit pro Teilstrecke [sek] | G13: gerundet | H13: min/km
B14: gesamte Gruppe | D14: =(D$4/3.6)*(D$7-(D9*(IF(D10=180,0.7,IF(D10=90,0.4,IF(D10=45,0.5)))))) -> 68 | E14: =D14/(D9+1) -> 22.66666667 | F14: =(E14/(D4/3.6)) -> 4.533333333 | G14: =ROUND(F14,0) -> 5 | H14: =TIME(0,0,1/(D4/3600)) -> 00:03:20
B16: INDIVIDUALTRAINING | D16: gib jedem Athlet/ jeder Athletin eine eigene Geschwindigkeit
A17: Nr | B17: Spieler | C17: individuelle vorgegeben km/h | D17: Distanz HIIT [m] | E17: Distanz der Teilstrecken [m] | F17: Zeit pro Teilstrecke [sek] | G17: gerundet | H17: min/km
A18: =AthletInnen!A4 -> 1 | B18: =AthletInnen!B4 -> Test1 | C18: 16 | D18: =IF(ISNUMBER(C18),(C18/3.6)*(D$7-(D$9*(IF(D$10=180,0.7,IF(D$10=90,0.4,IF(D$10=45,0.5)))))),"") -> 60.44444444 | E18: =IF(ISNUMBER(D18),D18/(D$9+1),"") -> 20.14814815 | F18: =IF(ISNUMBER(C18),(E18/(C18/3.6)),"") -> 4.533333333 | G18: =ROUND(F18,0) -> 5 | H18: =IF(ISNUMBER(C18),TIME(0,0,1/(C18/3600)),"") -> 00:03:45
A19: =AthletInnen!A5 -> 2 | B19: =AthletInnen!B5 -> Test2 | C19: 16 | D19: =IF(ISNUMBER(C19),(C19/3.6)*(D$7-(D$9*(IF(D$10=180,0.7,IF(D$10=90,0.4,IF(D$10=45,0.5)))))),"") -> 60.44444444 | E19: =IF(ISNUMBER(D19),D19/(D$9+1),"") -> 20.14814815 | F19: =IF(ISNUMBER(C19),(E19/(C19/3.6)),"") -> 4.533333333 | G19: =ROUND(F19,0) -> 5 | H19: =IF(ISNUMBER(C19),TIME(0,0,1/(C19/3600)),"") -> 00:03:45
A20: =AthletInnen!A6 -> 3 | B20: =AthletInnen!B6 -> Test3 | C20: 16 | D20: 60.44444444 | E20: 20.14814815 | F20: 4.533333333 | G20: 5 | H20: 00:03:45
A21: =AthletInnen!A7 -> 4 | B21: =AthletInnen!B7 -> Test4 | C21: 16 | D21: 60.44444444 | E21: 20.14814815 | F21: 4.533333333 | G21: 5 | H21: 00:03:45
A22: =AthletInnen!A8 -> 5 | B22: =AthletInnen!B8 -> Test5
A23: =AthletInnen!A9 -> 6 | B23: =AthletInnen!B9 -> Test6
A24: =AthletInnen!A10 -> 7 | B24: =AthletInnen!B10 -> Test7
A25: =AthletInnen!A11 -> 8 | B25: =AthletInnen!B11 -> Test8
A26: =AthletInnen!A12 -> 9 | B26: =AthletInnen!B12 -> Test9
A27: =AthletInnen!A13 -> 10 | B27: =AthletInnen!B13 -> Test10
A28: =AthletInnen!A14 -> 11 | B28: =AthletInnen!B14 -> Spieler 11
A29: =AthletInnen!A15 -> 12 | B29: =AthletInnen!B15 -> Spieler 12
A30: =AthletInnen!A16 -> 13 | B30: =AthletInnen!B16 -> Spieler 13
A31: =AthletInnen!A17 -> 14 | B31: =AthletInnen!B17 -> Spieler 14
A32: =AthletInnen!A18 -> 15 | B32: =AthletInnen!B18 -> Spieler 15
A33: =AthletInnen!A19 -> 16 | B33: =AthletInnen!B19 -> Spieler 16
A34: =AthletInnen!A20 -> 17 | B34: =AthletInnen!B20 -> Spieler 17
A35: =AthletInnen!A21 -> 18 | B35: =AthletInnen!B21 -> Spieler 18
A36: =AthletInnen!A22 -> 19 | B36: =AthletInnen!B22 -> Spieler 19
A37: =AthletInnen!A23 -> 20 | B37: =AthletInnen!B23 -> Spieler 20
A38: =AthletInnen!A24 -> 21 | B38: =AthletInnen!B24 -> Spieler 21
A39: =AthletInnen!A25 -> 22 | B39: =AthletInnen!B25 -> Spieler 22
A40: =AthletInnen!A26 -> 23 | B40: =AthletInnen!B26 -> Spieler 23
A41: =AthletInnen!A27 -> 24 | B41: =AthletInnen!B27 -> Spieler 24
A42: =AthletInnen!A28 -> 25 | B42: =AthletInnen!B28 -> Spieler 25
A43: =AthletInnen!A29 -> 26 | B43: =AthletInnen!B29 -> Spieler 26
A44: =AthletInnen!A30 -> 27 | B44: =AthletInnen!B30 -> Spieler 27
A45: =AthletInnen!A31 -> 28 | B45: =AthletInnen!B31 -> Spieler 28
A46: =AthletInnen!A32 -> 29 | B46: =AthletInnen!B32 -> Spieler 29
A47: =AthletInnen!A33 -> 30 | B47: =AthletInnen!B33 -> Spieler 30
A48: =AthletInnen!A34 -> 31 | B48: =AthletInnen!B34 -> Spieler 31
A49: =AthletInnen!A35 -> 32 | B49: =AthletInnen!B35 -> Spieler 32
A50: =AthletInnen!A36 -> 33 | B50: =AthletInnen!B36 -> Spieler 33
A51: =AthletInnen!A37 -> 34 | B51: =AthletInnen!B37 -> Spieler 34
A52: =AthletInnen!A38 -> 35 | B52: =AthletInnen!B38 -> Spieler 35
A53: =AthletInnen!A39 -> 36 | B53: =AthletInnen!B39 -> Spieler 36
A54: =AthletInnen!A40 -> 37 | B54: =AthletInnen!B40 -> Spieler 37
A55: =AthletInnen!A41 -> 38 | B55: =AthletInnen!B41 -> Spieler 38
A56: =AthletInnen!A42 -> 39 | B56: =AthletInnen!B42 -> Spieler 39
A57: =AthletInnen!A43 -> 40 | B57: =AthletInnen!B43 -> Spieler 40

Sheet HIIT mit % aus VIFT
A1: HIIT CALCULATOR mit % aus VIFT
C3: © by Rexhep Kushutani Msc (VfL Bochum) & Florian Maierhofer MSc (MFT) (nach der Idee von Martin Buchheit)
B4: gewünschte Geschwindigkeit des VIFT [%] | D4: 100
B5: Serien an Intervallen [n] | D5: 2
B6: Anzahl der Intervalle [n] | D6: 2 | G6: =(D7+D8)*(D6*D5)/60 -> 4
B7: Dauer eines Intervalls in [sek] | D7: 30 | F7: Dauer [hh:mm:ss] | G7: =G6/60/24 -> 00:04:00
B8: Dauer der Pause in [sek] | D8: 30
B9: Anzahl an Richtungswechsel [n] | D9: 2
B10: Winkel Richtungswechsel [45°/90°/180°] | D10: 90
B12: GRUPPENTRAINING
B13: Empfehlung für die | D13: km/h | E13: gerundet | F13: Distanz gesamt [m] | G13: Distanz der Teilstrecke [m] | I13: Zeit pro Teilstrecke [sek] | K13: gerundet | L13: min/km
B14: gesamte Gruppe | D14: =(D$4*G59)/100 ->  | E14: =ROUND(D14,0) ->  | F14: =(D$14/3.6)*(D$7-(D$9*(IF(D10=180,0.7,IF(D10=90,0.4,IF(D10=45,0.5)))))) ->  | G14: =F14/(D9+1) ->  | I14: =(G14/(E14/3.6)) ->  | K14: =ROUND(I14,0) ->  | L14: =TIME(0,0,1/(D14/3600)) -> 
B16: INDIVIDUALTRAINING
A17: Nr | B17: Spieler | C17: Geschwindigkeit in [km/h] aus IFT | D17: v in [km/h] | E17: gerundet | F17: Distanz HIIT [m] | G17: Distanz der Teilstrecken [m] | I17: Zeit pro Teilstrecke [sek] | K17: gerundet | L17: min/km
A18: =AthletInnen!A4 -> 1 | B18: =AthletInnen!B4 -> Test1 | C18: ='IFT 30-15 Testprotokoll'!L4 ->  | D18: =IF(ISNUMBER(C18),(D$4*C18)/100,"") ->  | E18: =ROUND(D18,0) ->  | F18: =IF(ISNUMBER(E18),(E18/3.6)*(D$7-(D$9*(IF(D$10=180,0.7,IF(D$10=90,0.4,IF(D$10=45,0.5)))))),"") ->  | G18: =IF(ISNUMBER(F18),F18/(D$9+1),"") ->  | I18: =IF(ISNUMBER(G18),(G18/(D18/3.6)),"") ->  | K18: =ROUND(I18,0) ->  | L18: =IF(ISNUMBER(D18),TIME(0,0,1/(D18/3600)),"") -> 
A19: =AthletInnen!A5 -> 2 | B19: =AthletInnen!B5 -> Test2 | C19: ='IFT 30-15 Testprotokoll'!L5 ->  | D19: =IF(ISNUMBER(C19),(D$4*C19)/100,"") ->  | E19: =ROUND(D19,0) ->  | F19: =IF(ISNUMBER(E19),(E19/3.6)*(D$7-(D$9*(IF(D$10=180,0.7,IF(D$10=90,0.4,IF(D$10=45,0.5)))))),"") ->  | G19: =IF(ISNUMBER(F19),F19/(D$9+1),"") ->  | I19: =IF(ISNUMBER(G19),(G19/(D19/3.6)),"") ->  | K19: =ROUND(I19,0) ->  | L19: =IF(ISNUMBER(D19),TIME(0,0,1/(D19/3600)),"") -> 
A20: =AthletInnen!A6 -> 3 | B20: =AthletInnen!B6 -> Test3 | C20: ='IFT 30-15 Testprotokoll'!L6 -> 
A21: =AthletInnen!A7 -> 4 | B21: =AthletInnen!B7 -> Test4 | C21: ='IFT 30-15 Testprotokoll'!L7 -> 
A22: =AthletInnen!A8 -> 5 | B22: =AthletInnen!B8 -> Test5 | C22: ='IFT 30-15 Testprotokoll'!L8 -> 
A23: =AthletInnen!A9 -> 6 | B23: =AthletInnen!B9 -> Test6 | C23: ='IFT 30-15 Testprotokoll'!L9 -> 
A24: =AthletInnen!A10 -> 7 | B24: =AthletInnen!B10 -> Test7 | C24: ='IFT 30-15 Testprotokoll'!L10 -> 
A25: =AthletInnen!A11 -> 8 | B25: =AthletInnen!B11 -> Test8 | C25: ='IFT 30-15 Testprotokoll'!L11 -> 
A26: =AthletInnen!A12 -> 9 | B26: =AthletInnen!B12 -> Test9 | C26: ='IFT 30-15 Testprotokoll'!L12 -> 
A27: =AthletInnen!A13 -> 10 | B27: =AthletInnen!B13 -> Test10 | C27: ='IFT 30-15 Testprotokoll'!L13 -> 
A28: =AthletInnen!A14 -> 11 | B28: =AthletInnen!B14 -> Spieler 11 | C28: ='IFT 30-15 Testprotokoll'!L14 -> 
A29: =AthletInnen!A15 -> 12 | B29: =AthletInnen!B15 -> Spieler 12 | C29: ='IFT 30-15 Testprotokoll'!L15 -> 
A30: =AthletInnen!A16 -> 13 | B30: =AthletInnen!B16 -> Spieler 13 | C30: ='IFT 30-15 Testprotokoll'!L16 -> 
A31: =AthletInnen!A17 -> 14 | B31: =AthletInnen!B17 -> Spieler 14 | C31: ='IFT 30-15 Testprotokoll'!L17 -> 
A32: =AthletInnen!A18 -> 15 | B32: =AthletInnen!B18 -> Spieler 15 | C32: ='IFT 30-15 Testprotokoll'!L18 -> 
A33: =AthletInnen!A19 -> 16 | B33: =AthletInnen!B19 -> Spieler 16 | C33: ='IFT 30-15 Testprotokoll'!L19 -> 
A34: =AthletInnen!A20 -> 17 | B34: =AthletInnen!B20 -> Spieler 17 | C34: ='IFT 30-15 Testprotokoll'!L20 -> 
A35: =AthletInnen!A21 -> 18 | B35: =AthletInnen!B21 -> Spieler 18 | C35: ='IFT 30-15 Testprotokoll'!L21 -> 
A36: =AthletInnen!A22 -> 19 | B36: =AthletInnen!B22 -> Spieler 19 | C36: ='IFT 30-15 Testprotokoll'!L22 -> 
A37: =AthletInnen!A23 -> 20 | B37: =AthletInnen!B23 -> Spieler 20 | C37: ='IFT 30-15 Testprotokoll'!L23 -> 
A38: =AthletInnen!A24 -> 21 | B38: =AthletInnen!B24 -> Spieler 21 | C38: ='IFT 30-15 Testprotokoll'!L24 -> 
A39: =AthletInnen!A25 -> 22 | B39: =AthletInnen!B25 -> Spieler 22 | C39: ='IFT 30-15 Testprotokoll'!L25 -> 
A40: =AthletInnen!A26 -> 23 | B40: =AthletInnen!B26 -> Spieler 23 | C40: ='IFT 30-15 Testprotokoll'!L26 -> 
A41: =AthletInnen!A27 -> 24 | B41: =AthletInnen!B27 -> Spieler 24 | C41: ='IFT 30-15 Testprotokoll'!L27 -> 
A42: =AthletInnen!A28 -> 25 | B42: =AthletInnen!B28 -> Spieler 25 | C42: ='IFT 30-15 Testprotokoll'!L28 -> 
A43: =AthletInnen!A29 -> 26 | B43: =AthletInnen!B29 -> Spieler 26 | C43: ='IFT 30-15 Testprotokoll'!L29 -> 
A44: =AthletInnen!A30 -> 27 | B44: =AthletInnen!B30 -> Spieler 27 | C44: ='IFT 30-15 Testprotokoll'!L30 -> 
A45: =AthletInnen!A31 -> 28 | B45: =AthletInnen!B31 -> Spieler 28 | C45: ='IFT 30-15 Testprotokoll'!L31 -> 
A46: =AthletInnen!A32 -> 29 | B46: =AthletInnen!B32 -> Spieler 29 | C46: ='IFT 30-15 Testprotokoll'!L32 ->  | E46: =ROUND(D46,0) ->  | K46: =ROUND(I46,0) -> 
A47: =AthletInnen!A33 -> 30 | B47: =AthletInnen!B33 -> Spieler 30 | C47: ='IFT 30-15 Testprotokoll'!L33 -> 
A48: =AthletInnen!A34 -> 31 | B48: =AthletInnen!B34 -> Spieler 31 | C48: ='IFT 30-15 Testprotokoll'!L34 -> 
A49: =AthletInnen!A35 -> 32 | B49: =AthletInnen!B35 -> Spieler 32 | C49: ='IFT 30-15 Testprotokoll'!L35 -> 
A50: =AthletInnen!A36 -> 33 | B50: =AthletInnen!B36 -> Spieler 33 | C50: ='IFT 30-15 Testprotokoll'!L36 -> 
A51: =AthletInnen!A37 -> 34 | B51: =AthletInnen!B37 -> Spieler 34 | C51: ='IFT 30-15 Testprotokoll'!L37 -> 
A52: =AthletInnen!A38 -> 35 | B52: =AthletInnen!B38 -> Spieler 35 | C52: ='IFT 30-15 Testprotokoll'!L38 -> 
A53: =AthletInnen!A39 -> 36 | B53: =AthletInnen!B39 -> Spieler 36 | C53: ='IFT 30-15 Testprotokoll'!L39 -> 
A54: =AthletInnen!A40 -> 37 | B54: =AthletInnen!B40 -> Spieler 37 | C54: ='IFT 30-15 Testprotokoll'!L40 -> 
A55: =AthletInnen!A41 -> 38 | B55: =AthletInnen!B41 -> Spieler 38 | C55: ='IFT 30-15 Testprotokoll'!L41 -> 
A56: =AthletInnen!A42 -> 39 | B56: =AthletInnen!B42 -> Spieler 39 | C56: ='IFT 30-15 Testprotokoll'!L42 -> 
A57: =AthletInnen!A43 -> 40 | B57: =AthletInnen!B43 -> Spieler 40 | C57: ='IFT 30-15 Testprotokoll'!L43 -> 
B59: maximale Durchschnittsgeschwindigkeit der gesamten Gruppe aus Test (km/h) | G59: =AVERAGE(IF(C18:C57<>0,C18:C57)) ->  | H59: =ROUND(G59,0) -> 
B61: Geschwindigkeit für die gesamte Gruppe mit den gewünschten % des VIFT (km/h) | G61: =D14 ->  | H61: =ROUND(G61,0) -> 
